[Event "European School-ch 2019"]
[Site "Mamaia"]
[Date "2019.06.02"]
[Round "3.8"]
[White "Neshev, Nikola"]
[Black "Ognean, Mihnea-Ionut"]
[Result "0-1"]
[ECO "B07"]
[WhiteElo "1370"]
[BlackElo "2260"]
[Annotator "ChessBase"]
[PlyCount "52"]
[EventDate "2019.05.31"]
[EventType "swiss"]
[EventCountry "ROU"]
[SourceTitle "playchess.com"]
[Source "ChessBase"]
[SourceQuality "1"]
[TimeControl "40/5400+30:1800+30"]

1. e4 {[%emt 0:00:00]} d6 {[%emt 0:00:00]} 2. d4 {[%emt 0:00:00]} Nf6 {[%emt 0:00:00]} 3. Nc3 {[%emt 0:00:12]} g6 {[%emt 0:00:00]} 4. Bc4 {[%emt 0:01:19]} Bg7 {[%emt 0:00:01]} 5. f3 {[%emt 0:07:45]} c6 {[%emt 0:03:48]} 6. Be3 {[%emt 0:01:26]} b5 {[%emt 0:02:31]} 7. Bb3 {[%emt 0:00:11]} Nbd7 {[%emt 0:00:16]} 8. Qd2 {[%emt 0:03:41]} Bb7 {[%emt 0:04:42]} 9. Bh6 {[%emt 0:00:46]} Bxh6 {[%emt 0:03:40]} 10. Qxh6 {[%emt 0:00:08]} e5 {[%emt 0:01:51]} 11. Qg7 {[%emt 0:05:53]} Rf8 {[%emt 0:00:09]} 12. dxe5 {[%emt 0:02:23]} Nxe5 {[%emt 0:04:26]} 13. O-O-O {[%emt 0:06:06]} Qe7 {[%emt 0:01:53]} 14. f4 {[%emt 0:07:46]} Nh5 {[%emt 0:03:55]} 15. Qxh7 {[%emt 0:04:03]} Nxf4 {[%emt 0:00:28]} 16. Rf1 {[%emt 0:05:44]} Qg5 {[%emt 0:21:31]} 17. Nf3 {[%emt 0:03:58]} Nxf3 {[%emt 0:06:02]} 18. Rxf3 {[%emt 0:00:12]} Nd3+ {[%emt 0:08:38]} 19. Kb1 {[%emt 0:00:48]} Ne5 {[%emt 0:00:12]} 20. Bxf7+ Nxf7 {[%emt 0:06:48]} 21. Rhf1 {[%emt 0:17:01]} Qe7 {[%emt 0:00:06]} 22. Qxg6 {[%emt 0:03:49]} b4 {[%emt 0:05:19]} 23. e5 {[%emt 0:06:01]} dxe5 {[%emt 0:00:35]} 24. Ne4 {[%emt 0:00:06]} O-O-O {[%emt 0:00:16]} 25. Rxf7 {[%emt 0:00:25]} Rxf7 {[%emt 0:00:03]} 26. Rxf7 {[%emt 0:00:09]} Rd1# {[%emt 0:00:06]} 0-1

[Event "European School-ch 2019"]
[Site "Mamaia"]
[Date "2019.06.02"]
[Round "3.9"]
[White "Tinarlioglu, Emre"]
[Black "Vilcu, Matei-Stefan"]
[Result "1/2-1/2"]
[ECO "A45"]
[WhiteElo "1907"]
[BlackElo "1991"]
[Annotator "NA"]
[PlyCount "56"]
[EventDate "2019.05.31"]
[EventType "swiss"]
[EventCountry "ROU"]
[SourceTitle "playchess.com"]
[Source "ChessBase"]
[SourceQuality "1"]
[TimeControl "40/5400+30:1800+30"]

1. d4 {[%emt 0:00:00]} Nf6 {[%emt 0:00:01]} 2. Bg5 {[%emt 0:00:00]} Ne4 {[%emt 0:00:22]} 3. Bf4 {[%emt 0:00:00]} d5 {[%emt 0:01:17]} 4. f3 {[%emt 0:00:00]} Nf6 {[%emt 0:00:11]} 5. e4 {[%emt 0:00:00]} dxe4 {[%emt 0:02:19]} 6. Nc3 {[%emt 0:00:02]} e3 {[%emt 0:07:56]} 7. Bxe3 {[%emt 0:00:09]} e6 {[%emt 0:01:17]} 8. Bd3 {[%emt 0:01:20]} Bb4 {[%emt 0:02:16]} 9. Nge2 {[%emt 0:03:43]} c5 {[%emt 0:08:37]} 10. O-O {[%emt 0:06:34]} cxd4 {[%emt 0:05:34]} 11. Bxd4 {[%emt 0:00:28]} O-O {[%emt 0:01:29]} 12. a3 {[%emt 0:07:06]} Be7 {[%emt 0:05:51]} 13. Qe1 {[%emt 0:03:33]} Nc6 {[%emt 0:01:06]} 14. Be3 {[%emt 0:00:34]} Ne5 {[%emt 0:02:38]} 15. Rd1 {[%emt 0:02:39]} Nxd3 {[%emt 0:03:36]} 16. Rxd3 {[%emt 0:00:07]} Qc7 {[%emt 0:03:04]} 17. Qd2 {[%emt 0:04:21]} e5 {[%emt 0:04:17]} 18. Ne4 {[%emt 0:12:36]} Be6 {[%emt 0:12:23]} 19. N2c3 {[%emt 0:04:37]} Rfd8 {[%emt 0:08:28]} 20. Rd1 {[%emt 0:06:00]} Rxd3 {[%emt 0:02:45]} 21. Qxd3 {[%emt 0:00:08]} Rd8 {[%emt 0:00:22]} 22. Qe2 {[%emt 0:00:33]} a6 {[%emt 0:02:36]} 23. Rxd8+ {[%emt 0:00:59]} Qxd8 {[%emt 0:01:23]} 24. Nxf6+ {[%emt 0:01:04]} Bxf6 {[%emt 0:00:06]} 25. Ne4 {[%emt 0:00:04]} Be7 {[%emt 0:00:17]} 26. Qd2 {[%emt 0:00:15]} Qxd2 {[%emt 0:00:29]} 27. Nxd2 {[%emt 0:00:07]} b5 {[%emt 0:00:19]} 28. Kf2 {[%emt 0:00:28]} Kf8 {[%emt 0:02:47]} 1/2-1/2

[Event "European School-ch 2019"]
[Site "Mamaia"]
[Date "2019.06.02"]
[Round "3.10"]
[White "Padurariu, Mihai-Edward"]
[Black "Bonciu, David"]
[Result "1/2-1/2"]
[ECO "B31"]
[WhiteElo "2090"]
[BlackElo "1886"]
[Annotator "NA"]
[PlyCount "36"]
[EventDate "2019.05.31"]
[EventType "swiss"]
[EventCountry "ROU"]
[SourceTitle "playchess.com"]
[Source "ChessBase"]
[SourceQuality "1"]
[TimeControl "40/5400+30:1800+30"]

1. e4 {[%emt 0:00:00]} c5 {[%emt 0:00:00]} 2. Nf3 {[%emt 0:00:00]} Nc6 {[%emt 0:00:00]} 3. Bb5 {[%emt 0:00:00]} g6 {[%emt 0:00:00]} 4. Bxc6 {[%emt 0:00:08]} dxc6 {[%emt 0:00:00]} 5. d3 {[%emt 0:00:10]} Bg7 {[%emt 0:00:00]} 6. h3 {[%emt 0:00:15]} e5 {[%emt 0:00:00]} 7. Be3 {[%emt 0:03:18]} b6 {[%emt 0:00:00]} 8. Qd2 {[%emt 0:03:40]} h6 {[%emt 0:00:11]} 9. Nc3 {[%emt 0:04:12]} Ne7 {[%emt 0:08:59]} 10. O-O {[%emt 0:11:31]} f5 {[%emt 0:00:19]} 11. exf5 {[%emt 0:05:21]} gxf5 {[%emt 0:01:09]} 12. Qe2 {[%emt 0:03:12]} O-O {[%emt 0:15:05]} 13. Bd2 {[%emt 0:02:31]} Qd6 {[%emt 0:04:15]} 14. Nh4 {[%emt 0:05:26]} Qf6 {[%emt 0:15:49]} 15. Nf3 {[%emt 0:08:12]} Ba6 {[%emt 0:11:02]} 16. Nh2 {[%emt 0:06:40]} Rad8 {[%emt 0:02:30]} 17. Rfe1 {[%emt 0:03:36]} Nd5 {[%emt 0:11:00]} 18. Qh5 {[%emt 0:06:43]} Qf7 {[%emt 0:07:41]} 1/2-1/2

[Event "European School-ch 2019"]
[Site "Mamaia"]
[Date "2019.06.02"]
[Round "3.11"]
[White "Gleizer, Adar"]
[Black "Ochedzan, Tymon"]
[Result "1/2-1/2"]
[ECO "B51"]
[WhiteElo "1774"]
[BlackElo "2064"]
[Annotator "NA"]
[PlyCount "136"]
[EventDate "2019.05.31"]
[EventType "swiss"]
[EventCountry "ROU"]
[SourceTitle "playchess.com"]
[Source "ChessBase"]
[SourceQuality "1"]
[TimeControl "40/5400+30:1800+30"]

1. e4 {[%emt 0:00:00]} c5 {[%emt 0:00:00]} 2. Nf3 {[%emt 0:00:00]} d6 {[%emt 0:00:00]} 3. Bb5+ {[%emt 0:00:01]} Nd7 {[%emt 0:02:27]} 4. Ba4 {[%emt 0:00:44]} Ngf6 {[%emt 0:04:22]} 5. O-O {[%emt 0:01:29]} a6 {[%emt 0:08:55]} 6. c4 {[%emt 0:01:44]} e5 {[%emt 0:02:50]} 7. d3 {[%emt 0:02:01]} Be7 {[%emt 0:02:10]} 8. Nc3 {[%emt 0:02:04]} O-O {[%emt 0:00:55]} 9. a3 {[%emt 0:03:50]} h6 {[%emt 0:09:21]} 10. h3 {[%emt 0:04:21]} Nb6 {[%emt 0:01:13]} 11. Bc2 {[%emt 0:01:10]} Be6 {[%emt 0:01:04]} 12. Be3 {[%emt 0:00:47]} Nh7 {[%emt 0:02:59]} 13. Nd2 {[%emt 0:00:48]} Bg5 {[%emt 0:02:32]} 14. Qe2 {[%emt 0:01:42]} Qf6 {[%emt 0:05:47]} 15. b4 {[%emt 0:02:15]} cxb4 {[%emt 0:02:40]} 16. axb4 {[%emt 0:00:11]} Nd7 {[%emt 0:01:15]} 17. Nf3 {[%emt 0:04:35]} Bxe3 {[%emt 0:10:57]} 18. fxe3 {[%emt 0:02:00]} Qd8 {[%emt 0:04:25]} 19. d4 {[%emt 0:02:53]} exd4 {[%emt 0:02:15]} 20. exd4 {[%emt 0:00:13]} Qb6 {[%emt 0:02:22]} 21. Rab1 {[%emt 0:01:37]} Ne5 {[%emt 0:03:40]} 22. c5 {[%emt 0:01:53]} Nxf3+ {[%emt 0:01:26]} 23. Qxf3 {[%emt 0:01:23]} Qc7 {[%emt 0:02:22]} 24. Na4 {[%emt 0:12:03]} Rad8 {[%emt 0:04:49]} 25. d5 {[%emt 0:04:16]} Bd7 {[%emt 0:01:23]} 26. Qf2 {[%emt 0:03:33]} Bb5 {[%emt 0:01:35]} 27. Rfc1 {[%emt 0:02:18]} Qe7 {[%emt 0:01:17]} 28. Nc3 {[%emt 0:01:00]} Bd7 {[%emt 0:00:59]} 29. Qd4 {[%emt 0:01:12]} Qg5 {[%emt 0:02:40]} 30. Kh1 {[%emt 0:04:02]} Qg3 {[%emt 0:03:27]} 31. Ne2 {[%emt 0:01:00]} Qh4 {[%emt 0:00:43]} 32. Qd3 {[%emt 0:01:53]} Bb5 {[%emt 0:01:29]} 33. Qg3 {[%emt 0:00:48]} Qf6 {[%emt 0:00:47]} 34. Nc3 {[%emt 0:01:04]} Bc4 {[%emt 0:02:31]} 35. Bd3 {[%emt 0:01:28]} Bxd3 {[%emt 0:00:20]} 36. Qxd3 {[%emt 0:00:03]} Rfe8 {[%emt 0:00:56]} 37. c6 {[%emt 0:01:32]} Qe7 {[%emt 0:01:46]} 38. b5 {[%emt 0:01:52]} axb5 {[%emt 0:01:21]} 39. Nxb5 {[%emt 0:01:52]} Nf6 {[%emt 0:02:43]} 40. c7 {[%emt 0:00:00]} Rc8 {[%emt 0:00:00]} 41. Rb4 {[%emt 0:07:27]} Kf8 {[%emt 0:08:18]} 42. Re1 {[%emt 0:04:37]} Ng4 {[%emt 0:01:53]} 43. Qg3 {[%emt 0:04:50]} Ne5 {[%emt 0:03:08]} 44. Rc1 {[%emt 0:00:47]} h5 {[%emt 0:02:10]} 45. Qc3 {[%emt 0:01:59]} Qg5 {[%emt 0:04:19]} 46. Rbb1 {[%emt 0:01:36]} Qf4 {[%emt 0:02:22]} 47. Re1 {[%emt 0:09:07]} Re7 {[%emt 0:01:39]} 48. Rf1 {[%emt 0:06:13]} Qh6 {[%emt 0:01:20]} 49. Rbc1 {[%emt 0:03:07]} Rd7 {[%emt 0:02:15]} 50. Qa5 {[%emt 0:03:21]} Qe3 {[%emt 0:02:29]} 51. Na7 {[%emt 0:02:11]} b6 {[%emt 0:01:03]} 52. Qb4 {[%emt 0:05:16]} Nd3 {[%emt 0:00:59]} 53. Qb5 {[%emt 0:00:44]} Rcxc7 {[%emt 0:02:55]} 54. Rxc7 {[%emt 0:04:00]} Rxc7 {[%emt 0:00:10]} 55. Nc6 {[%emt 0:00:46]} Nf2+ {[%emt 0:01:26]} 56. Kh2 {[%emt 0:00:27]} Nxe4 {[%emt 0:00:07]} 57. Qa6 {[%emt 0:01:34]} Kg8 {[%emt 0:02:08]} 58. Qa8+ {[%emt 0:01:29]} Kh7 {[%emt 0:00:04]} 59. Qd8 {[%emt 0:03:00]} Qg3+ {[%emt 0:00:27]} 60. Kg1 {[%emt 0:00:33]} Qe3+ {[%emt 0:00:39]} 61. Kh2 {[%emt 0:00:09]} Qg3+ {[%emt 0:00:09]} 62. Kh1 {[%emt 0:00:43]} Nf2+ {[%emt 0:03:48]} 63. Rxf2 {[%emt 0:00:19]} Qxf2 {[%emt 0:00:09]} 64. Qxc7 {[%emt 0:00:06]} Qf1+ {[%emt 0:00:15]} 65. Kh2 {[%emt 0:00:07]} Qf4+ {[%emt 0:00:17]} 66. Kg1 {[%emt 0:00:36]} Qc1+ {[%emt 0:00:45]} 67. Kh2 {[%emt 0:01:03]} Qf4+ {[%emt 0:00:05]} 68. Kg1 {[%emt 0:00:10]} Qc1+ {[%emt 0:00:03] Qd7} 1/2-1/2

[Event "European School-ch 2019"]
[Site "Mamaia"]
[Date "2019.06.02"]
[Round "3.12"]
[White "Silich, Yahor"]
[Black "Baranciuc, Alexandr"]
[Result "1-0"]
[ECO "B07"]
[WhiteElo "2082"]
[BlackElo "1900"]
[Annotator "NA"]
[PlyCount "69"]
[EventDate "2019.05.31"]
[EventType "swiss"]
[EventCountry "ROU"]
[SourceTitle "playchess.com"]
[Source "ChessBase"]
[SourceQuality "1"]
[TimeControl "40/5400+30:1800+30"]

1. e4 {[%emt 0:00:00]} d6 {[%emt 0:00:05]} 2. d4 {[%emt 0:00:15]} Nf6 {[%emt 0:00:18]} 3. Nc3 {[%emt 0:00:20]} g6 {[%emt 0:00:08]} 4. Be3 {[%emt 0:00:46]} a6 {[%emt 0:00:12]} 5. Nf3 {[%emt 0:01:22]} Bg7 {[%emt 0:01:14]} 6. Bd3 {[%emt 0:00:51]} O-O {[%emt 0:00:30]} 7. O-O {[%emt 0:01:22]} b5 {[%emt 0:00:10]} 8. a4 b4 {[%emt 0:00:16]} 9. Ne2 {[%emt 0:02:47]} Bb7 {[%emt 0:02:41]} 10. Ng3 {[%emt 0:01:22]} Nbd7 {[%emt 0:00:20]} 11. c3 {[%emt 0:01:29]} c5 {[%emt 0:06:11]} 12. cxb4 {[%emt 0:04:47]} cxb4 {[%emt 0:00:28]} 13. a5 {[%emt 0:00:13]} e5 {[%emt 0:27:19]} 14. d5 {[%emt 0:13:49]} Nc5 {[%emt 0:00:37]} 15. Bc2 {[%emt 0:10:11]} Qc7 {[%emt 0:11:17]} 16. Nd2 {[%emt 0:03:22]} h5 {[%emt 0:07:20]} 17. f3 {[%emt 0:11:45]} Rac8 {[%emt 0:03:21]} 18. b3 {[%emt 0:03:01]} Nfd7 {[%emt 0:03:16]} 19. Nc4 {[%emt 0:06:13]} Rb8 {[%emt 0:10:01]} 20. Bd2 {[%emt 0:08:33]} f5 {[%emt 0:01:28]} 21. exf5 {[%emt 0:08:59]} gxf5 {[%emt 0:09:26]} 22. Bg5 {[%emt 0:03:45]} e4 {[%emt 0:09:42]} 23. fxe4 {[%emt 0:03:16]} Bxa1 {[%emt 0:00:53]} 24. Qxa1 {[%emt 0:00:15]} fxe4 {[%emt 0:01:02]} 25. Nf5 {[%emt 0:00:47]} Ne5 {[%emt 0:01:53]} 26. Nxe5 {[%emt 0:08:33]} dxe5 {[%emt 0:00:05]} 27. d6 {[%emt 0:00:01]} Qd7 {[%emt 0:00:13]} 28. Qxe5 {[%emt 0:00:05]} Ne6 {[%emt 0:00:02]} 29. Ne7+ {[%emt 0:00:13]} Kh7 {[%emt 0:00:14]} 30. Bxe4+ {[%emt 0:00:04]} Bxe4 {[%emt 0:00:07]} 31. Qxe4+ {[%emt 0:00:01]} Kh8 {[%emt 0:01:25]} 32. Rf6 {[%emt 0:00:57]} Qa7+ {[%emt 0:02:30]} 33. Kh1 {[%emt 0:01:13]} Rxf6 {[%emt 0:00:23]} 34. Bxf6+ {[%emt 0:00:01]} Ng7 {[%emt 0:00:08]} 35. Qg6 {[%emt 0:00:10]} 1-0

[Event "European School-ch 2019"]
[Site "Mamaia"]
[Date "2019.06.02"]
[Round "3.13"]
[White "Simonyan, Grigori"]
[Black "Nedelcu, Teodor-Cosmin"]
[Result "1-0"]
[ECO "B44"]
[WhiteElo "2019"]
[BlackElo "1954"]
[Annotator "NA"]
[PlyCount "53"]
[EventDate "2019.05.31"]
[EventType "swiss"]
[EventCountry "ROU"]
[SourceTitle "playchess.com"]
[Source "ChessBase"]
[SourceQuality "1"]
[TimeControl "40/5400+30:1800+30"]

1. e4 {[%emt 0:00:00]} c5 {[%emt 0:00:00]} 2. Nf3 {[%emt 0:00:00]} e6 {[%emt 0:00:00]} 3. d4 {[%emt 0:00:00]} cxd4 {[%emt 0:00:00]} 4. Nxd4 {[%emt 0:00:00]} Nc6 {[%emt 0:00:07]} 5. Nxc6 {[%emt 0:02:17]} bxc6 {[%emt 0:00:01]} 6. Bd3 {[%emt 0:00:19]} Nf6 {[%emt 0:00:31]} 7. O-O {[%emt 0:00:38]} d5 {[%emt 0:01:05]} 8. Nd2 {[%emt 0:00:07]} Qc7 {[%emt 0:07:12]} 9. f4 {[%emt 0:18:25]} Bb7 {[%emt 0:13:25]} 10. Kh1 {[%emt 0:02:31]} O-O-O {[%emt 0:03:34]} 11. exd5 {[%emt 0:01:07]} cxd5 {[%emt 0:01:17]} 12. Nf3 {[%emt 0:03:57]} Bc5 {[%emt 0:02:10]} 13. Qe2 {[%emt 0:06:57]} Rhe8 {[%emt 0:19:49]} 14. b4 {[%emt 0:16:44]} Bxb4 {[%emt 0:41:57]} 15. Rb1 {[%emt 0:00:03]} Qd6 {[%emt 0:04:38]} 16. Bb2 {[%emt 0:00:11]} Qf8 {[%emt 0:01:09]} 17. Bd4 {[%emt 0:00:37]} Bc5 {[%emt 0:00:48]} 18. Ba6 {[%emt 0:00:18]} Rd7 {[%emt 0:00:14]} 19. Bxb7+ {[%emt 0:02:15]} Rxb7 {[%emt 0:00:26]} 20. Qa6 {[%emt 0:00:03]} Bb6 {[%emt 0:00:13]} 21. Bxb6 {[%emt 0:00:02]} Nd7 {[%emt 0:01:19]} 22. Bxa7 {[%emt 0:00:09]} Nc5 {[%emt 0:00:30]} 23. Bxc5 {[%emt 0:00:07]} Qxc5 {[%emt 0:00:01]} 24. Rxb7 {[%emt 0:00:09]} Kd8 {[%emt 0:00:25]} 25. Qa8+ {[%emt 0:00:07]} Qc8 {[%emt 0:00:16]} 26. Qa5+ {[%emt 0:00:04]} Qc7 {[%emt 0:00:06]} 27. Qxc7# {[%emt 0:00:04]} 1-0

[Event "European School-ch 2019"]
[Site "Mamaia"]
[Date "2019.06.02"]
[Round "3.14"]
[White "Nastore, Pavel-Alexandru"]
[Black "Dobre, Radu-Fabian"]
[Result "1/2-1/2"]
[ECO "C70"]
[WhiteElo "1942"]
[BlackElo "1978"]
[Annotator "NA"]
[PlyCount "85"]
[EventDate "2019.05.31"]
[EventType "swiss"]
[EventCountry "ROU"]
[SourceTitle "playchess.com"]
[Source "ChessBase"]
[SourceQuality "1"]
[TimeControl "40/5400+30:1800+30"]

1. e4 {[%emt 0:00:00]} e5 {[%emt 0:00:00]} 2. Nf3 {[%emt 0:00:00]} Nc6 {[%emt 0:00:00]} 3. Bb5 {[%emt 0:00:00]} a6 {[%emt 0:00:00]} 4. Ba4 {[%emt 0:00:00]} b5 {[%emt 0:00:00]} 5. Bb3 {[%emt 0:00:00]} Bb7 {[%emt 0:00:00]} 6. O-O {[%emt 0:00:00]} Be7 {[%emt 0:00:03]} 7. c3 {[%emt 0:00:00]} Nf6 {[%emt 0:00:05]} 8. Re1 {[%emt 0:00:02]} O-O {[%emt 0:00:06]} 9. d4 {[%emt 0:00:03]} d6 {[%emt 0:00:08]} 10. Nbd2 {[%emt 0:00:04]} h6 {[%emt 0:00:05]} 11. Nf1 {[%emt 0:00:07]} Re8 {[%emt 0:00:03]} 12. Ng3 {[%emt 0:00:05]} Bf8 {[%emt 0:00:04]} 13. a4 {[%emt 0:00:05]} Na5 {[%emt 0:00:17]} 14. Bc2 {[%emt 0:00:04]} Nc4 {[%emt 0:00:06]} 15. a5 {[%emt 0:00:02]} c5 {[%emt 0:07:31]} 16. b3 {[%emt 0:00:05]} Nxa5 {[%emt 0:00:08]} 17. dxe5 {[%emt 0:00:02]} Nd7 {[%emt 0:02:35]} 18. exd6 {[%emt 0:01:09]} Nc6 {[%emt 0:01:07]} 19. Bf4 {[%emt 0:42:59]} Qf6 {[%emt 0:05:10]} 20. Nh5 {[%emt 0:00:56]} Qe6 {[%emt 0:00:13]} 21. Bg3 {[%emt 0:19:25]} Rad8 {[%emt 0:10:55]} 22. e5 {[%emt 0:00:37]} Qg4 {[%emt 0:00:41]} 23. Re4 {[%emt 0:00:07]} Qxh5 {[%emt 0:04:13]} 24. Rh4 {[%emt 0:00:04]} Qxh4 {[%emt 0:00:07]} 25. Bxh4 {[%emt 0:00:10]} Ra8 {[%emt 0:00:32]} 26. Be4 {[%emt 0:19:04]} Ra7 {[%emt 0:11:39]} 27. Bf5 {[%emt 0:02:43]} Ncb8 {[%emt 0:05:18]} 28. Bg3 {[%emt 0:01:23]} g6 {[%emt 0:01:55]} 29. e6 {[%emt 0:03:24]} gxf5 {[%emt 0:02:30]} 30. exd7 {[%emt 0:00:05]} Nxd7 {[%emt 0:00:03]} 31. Nh4 {[%emt 0:00:44]} Bc8 {[%emt 0:00:55]} 32. Nxf5 {[%emt 0:00:27]} Nf6 {[%emt 0:00:03]} 33. Qf3 {[%emt 0:02:08]} Bxf5 {[%emt 0:06:46]} 34. Qxf5 {[%emt 0:00:06]} Nd7 {[%emt 0:00:18]} 35. h4 {[%emt 0:00:58]} Bg7 {[%emt 0:00:12]} 36. Rc1 {[%emt 0:01:43]} a5 {[%emt 0:00:10]} 37. Bf4 {[%emt 0:00:38]} a4 {[%emt 0:00:52]} 38. bxa4 {[%emt 0:02:31]} bxa4 {[%emt 0:00:02]} 39. g4 {[%emt 0:00:57]} a3 {[%emt 0:00:46]} 40. g5 {[%emt 0:00:00]} hxg5 {[%emt 0:00:00]} 41. hxg5 {[%emt 0:00:38]} Nf8 {[%emt 0:05:27]} 42. Qd5 {[%emt 0:21:05]} a2 43. Ra1 1/2-1/2

[Event "European School-ch 2019"]
[Site "Mamaia"]
[Date "2019.06.02"]
[Round "3.15"]
[White "Trushko, Andrii"]
[Black "Kanli, Alperen"]
[Result "1-0"]
[ECO "D00"]
[WhiteElo "1813"]
[BlackElo "1790"]
[Annotator "NA"]
[PlyCount "96"]
[EventDate "2019.05.31"]
[EventType "swiss"]
[EventCountry "ROU"]
[SourceTitle "playchess.com"]
[Source "ChessBase"]
[SourceQuality "1"]
[TimeControl "40/5400+30:1800+30"]

1. d4 {[%emt 0:01:01]} d5 {[%emt 0:00:00]} 2. Bf4 {[%emt 0:01:59]} Nf6 {[%emt 0:00:00]} 3. e3 {[%emt 0:02:01]} g6 {[%emt 0:00:00]} 4. Be2 {[%emt 0:06:59]} Bg7 {[%emt 0:00:00]} 5. Nd2 {[%emt 0:00:38]} c5 {[%emt 0:01:08]} 6. c3 {[%emt 0:03:12]} Nfd7 {[%emt 0:01:28]} 7. Ngf3 {[%emt 0:03:19]} Nc6 {[%emt 0:00:40]} 8. a3 {[%emt 0:03:55]} O-O {[%emt 0:02:39]} 9. O-O {[%emt 0:04:51]} e5 {[%emt 0:05:33]} 10. dxe5 {[%emt 0:00:17]} Ndxe5 {[%emt 0:00:07]} 11. Nxe5 {[%emt 0:04:07]} Nxe5 {[%emt 0:00:31]} 12. Re1 {[%emt 0:01:33]} Be6 {[%emt 0:01:07]} 13. Bxe5 {[%emt 0:06:30]} Bxe5 {[%emt 0:00:10]} 14. Nf3 {[%emt 0:01:16]} Bg7 {[%emt 0:02:09]} 15. Qd2 {[%emt 0:01:30]} h6 {[%emt 0:03:43]} 16. Rad1 {[%emt 0:00:41]} Qb6 {[%emt 0:01:50]} 17. Bf1 {[%emt 0:02:08]} Rfd8 {[%emt 0:00:21]} 18. g3 {[%emt 0:01:33]} Bg4 {[%emt 0:03:44]} 19. Bg2 {[%emt 0:01:17]} Qf6 {[%emt 0:00:21]} 20. Qe2 {[%emt 0:00:44]} Qf5 {[%emt 0:02:19]} 21. Rd2 {[%emt 0:05:12]} g5 {[%emt 0:02:45]} 22. e4 {[%emt 0:11:57]} dxe4 {[%emt 0:13:03]} 23. Qxe4 {[%emt 0:01:55]} Qxe4 {[%emt 0:03:40]} 24. Rxe4 {[%emt 0:00:06]} Be6 {[%emt 0:00:15]} 25. Ree2 {[%emt 0:02:21]} Rab8 {[%emt 0:04:12]} 26. Rxd8+ {[%emt 0:03:14]} Rxd8 {[%emt 0:00:13]} 27. Rd2 {[%emt 0:00:01]} Rb8 {[%emt 0:01:25]} 28. Ne1 {[%emt 0:01:11]} b5 {[%emt 0:01:03]} 29. Nc2 {[%emt 0:01:02]} a5 {[%emt 0:00:54]} 30. Bd5 {[%emt 0:02:16]} Rd8 {[%emt 0:01:03]} 31. Ne3 {[%emt 0:00:04]} b4 {[%emt 0:11:26]} 32. axb4 {[%emt 0:01:01]} axb4 {[%emt 0:00:33]} 33. cxb4 {[%emt 0:00:14]} cxb4 {[%emt 0:00:18]} 34. b3 {[%emt 0:00:20]} Kf8 {[%emt 0:03:42]} 35. Kf1 {[%emt 0:00:33]} Rc8 {[%emt 0:06:50]} 36. Nc4 {[%emt 0:01:19]} Bc3 {[%emt 0:03:12]} 37. Bxe6 {[%emt 0:00:27]} fxe6 {[%emt 0:00:09]} 38. Rd6 {[%emt 0:00:36]} Ke7 {[%emt 0:00:26]} 39. Ra6 {[%emt 0:00:14]} Rc7 {[%emt 0:00:47]} 40. Ke2 {[%emt 0:00:00]} Rd7 {[%emt 0:00:00]} 41. f3 {[%emt 0:01:00]} Kf6 {[%emt 0:00:56]} 42. Nd6 {[%emt 0:02:51]} Ke7 {[%emt 0:04:14]} 43. Ne4 {[%emt 0:00:55]} Rc7 {[%emt 0:01:15]} 44. h3 {[%emt 0:02:53]} Kd7 {[%emt 0:03:22]} 45. Kd3 {[%emt 0:09:46]} Ke7 {[%emt 0:00:13]} 46. Ke2 {[%emt 0:00:46]} Kd7 {[%emt 0:00:19]} 47. Kd3 {[%emt 0:00:49]} Ke7 {[%emt 0:00:04]} 48. Ke2 {[%emt 0:00:50]} Kd7 {[%emt 0:00:05]} 1-0